bitfinex-derivatives/quotes_ETHF0:USTF0_20230402
["timestamp","ask_amount","ask_price","bid_price","bid_amount"]
[1680455405822,0.87518401,1797.2,1797.0,2.99974687]
[1680455406715,0.87518401,1797.2,1797.0,0.834]
[1680455407015,0.87518401,1797.2,1797.0,1.99974687]
[1680455407213,0.87518401,1797.2,1797.0,0.834]
[1680455412017,4.08298401,1797.2,1797.0,0.834]
[1680455415522,0.87518401,1797.2,1797.0,0.834]
[1680455415722,5.08298401,1797.2,1797.0,0.834]
[1680455417531,4.08298401,1797.2,1797.0,0.834]
[1680455418731,0.87518401,1797.3,1797.0,0.834]
[1680455419034,0.87518401,1797.2,1797.0,0.834]
[1680455420532,1.87518401,1797.3,1797.0,0.834]
[1680455421231,1.87518401,1797.3,1797.1,0.56496243]
[1680455421533,3.2078,1797.2,1797.1,0.56496243]
[1680455422137,4.08298401,1797.2,1797.1,0.56496243]
[1680455422338,4.08298401,1797.2,1796.9,0.834]
[1680455423234,4.08298401,1797.2,1797.0,0.56492603]
[1680455423438,3.53518401,1797.1,1797.0,0.56492603]
[1680455423731,3.82692209,1797.1,1797.0,0.36954316]
[1680455424127,3.82692209,1797.1,1796.5,1.16574687]
[1680455424329,4.0378,1796.8,1796.6,1.0]
[1680455424933,4.0378,1796.8,1796.5,1.16574687]
[1680455426837,4.0378,1796.8,1796.4,6.86892006]
[1680455428442,4.0378,1796.8,1796.4,5.70317319]
[1680455429143,4.0378,1796.8,1796.4,2.49537319]
[1680455429344,3.2078,1796.6,1796.4,2.49537319]
[1680455429543,3.2078,1796.6,1796.4,0.83]
[1680455430634,3.2078,1796.6,1796.3,1.65680544]
[1680455430839,1.0,1796.5,1796.2,0.828]
[1680455431245,1.0,1796.5,1796.3,0.14852868]
[1680455431640,3.2078,1796.4,1796.3,0.14852868]
[1680455432536,3.2078,1796.4,1796.1,3.07828577]
[1680455432735,3.2078,1796.4,1796.0,4.37354687]
[1680455432736,0.834,1796.3,1796.0,4.37354687]
[1680455432940,1.834,1796.3,1795.9,1.99374687]
[1680455433247,0.834,1796.3,1796.0,1.16574687]
[1680455433448,0.834,1796.3,1796.0,2.16574687]
[1680455433649,0.834,1796.3,1796.0,1.16574687]
[1680455434344,0.83,1796.5,1796.1,1.828]
[1680455435755,0.83,1796.5,1796.1,0.828]
[1680455435955,3.2078,1796.4,1796.1,0.828]
[1680455437555,0.826,1796.3,1795.9,3.54700007]
[1680455437754,0.826,1796.3,1795.9,2.54700007]
[1680455437949,3.2078,1796.2,1795.9,2.54700007]
[1680455438855,3.2078,1796.2,1795.8,2.62257592]
[1680455439054,3.2078,1796.0,1795.7,6.31774687]
[1680455439262,3.2078,1796.0,1795.6,5.20754687]
[1680455439450,3.2078,1796.0,1795.7,1.16574687]
[1680455439648,1.04531231,1795.9,1795.6,5.37354687]
[1680455439847,1.04531231,1795.9,1795.6,4.37354687]
[1680455440558,1.04531231,1795.9,1795.6,4.9381074]
[1680455440758,0.21131231,1795.9,1795.7,0.831]
[1680455441256,3.2078,1796.3,1795.8,4.8718]
[1680455441451,3.2078,1796.3,1795.9,0.834]
[1680455441853,3.2078,1796.3,1795.9,1.834]
[1680455442061,4.0418,1796.3,1795.9,0.828]
[1680455442358,3.2078,1796.1,1795.9,0.828]
[1680455443757,3.2078,1796.1,1795.9,0.835]
[1680455448767,0.835,1796.3,1795.9,0.835]
[1680455448965,0.835,1796.3,1795.9,1.835]
[1680455449972,4.0428,1796.4,1796.0,0.835]
[1680455450565,0.833,1796.3,1795.9,1.835]
[1680455453164,0.10502334,1796.2,1795.9,1.835]
[1680455453668,0.10502334,1796.2,1795.9,0.835]
[1680455455363,0.10502334,1796.2,1795.9,1.835]
[1680455456067,0.10502334,1796.2,1795.9,0.835]
[1680455456868,3.31282334,1796.2,1795.9,0.835]
[1680455458173,0.83,1796.0,1795.8,3.2078]
[1680455458770,0.83,1796.0,1795.6,6.7731074]
[1680455459466,4.0378,1796.0,1795.6,5.60736053]
[1680455459672,3.2078,1796.0,1795.8,0.835]
[1680455460063,0.93802334,1796.2,1795.8,0.835]
[1680455460064,3.2078,1796.1,1795.8,0.835]
[1680455460872,0.827,1796.0,1795.6,2.39856053]
[1680455462173,0.827,1796.0,1795.6,3.5643074]
[1680455462374,0.827,1796.0,1795.6,6.7721074]
[1680455462675,0.827,1796.0,1795.6,4.60636053]
[1680455463174,0.827,1796.0,1795.6,5.7721074]
[1680455463777,0.835,1795.8,1795.6,4.9381074]
[1680455463977,0.835,1795.8,1795.6,1.7303074]
[1680455464169,0.833,1796.0,1795.6,5.7661074]
[1680455464381,0.22576878,1795.9,1795.6,5.7661074]
[1680455465477,0.22576878,1795.9,1795.7,1.16574687]
[1680455465782,0.22576878,1795.9,1795.7,2.16574687]
[1680455466772,0.22576878,1795.9,1795.7,1.16574687]
[1680455470481,0.22576878,1795.9,1795.8,1.16574687]
[1680455470680,0.22576878,1795.9,1795.6,6.05718958]
[1680455470681,0.22576878,1795.9,1795.7,1.16574687]
[1680455472089,1.06076878,1795.9,1795.7,1.16574687]
[1680455472384,1.06076878,1795.9,1795.8,1.16574687]
[1680455472585,1.06076878,1795.9,1795.7,1.16574687]
[1680455473589,1.06076878,1795.9,1795.6,5.22918958]
[1680455473590,1.06076878,1795.9,1795.8,1.16574687]
[1680455474284,0.22576878,1795.9,1795.8,1.16574687]
[1680455474586,0.22576878,1795.9,1795.8,3.00074687]
[1680455474886,0.2259789,1795.9,1795.8,2.00074687]
[1680455475278,3.2078,1796.1,1795.8,2.00074687]
[1680455475479,3.7889641,1796.1,1795.8,2.00074687]
[1680455475882,0.5811641,1796.2,1795.8,5.20854687]
[1680455476188,1.45521093,1796.2,1795.9,2.16574687]
[1680455476389,0.5811641,1796.2,1796.0,1.0]
[1680455477787,0.5811641,1796.2,1796.0,2.16574687]
[1680455478581,0.5811641,1796.2,1796.0,1.16574687]
[1680455480892,0.5811641,1796.2,1796.1,1.16574687]
[1680455482186,0.87404683,1796.4,1796.2,1.0]
[1680455482392,0.87404683,1796.5,1796.3,4.0418]
[1680455482592,0.87404683,1796.5,1796.4,1.0]
[1680455482787,0.87404683,1796.5,1796.3,0.834]
[1680455483184,0.87404683,1796.5,1796.4,0.12022818]
[1680455483384,0.87404683,1796.5,1796.3,0.834]
[1680455485097,0.87404683,1796.5,1796.3,5.20671066]
[1680455485297,0.87404683,1796.5,1796.3,0.834]
[1680455485490,0.87404683,1796.5,1796.3,4.0418]
[1680455486094,0.87404683,1796.6,1796.3,4.0418]
[1680455489808,0.835,1796.5,1796.2,1.16491066]
[1680455490098,1.70904683,1796.5,1796.2,1.16491066]
[1680455490297,0.835,1796.5,1796.2,1.16491066]
[1680455490491,1.70904683,1796.5,1796.1,2.55322038]
[1680455491698,1.70904683,1796.5,1796.2,1.16491066]
[1680455491894,1.70904683,1796.5,1796.1,5.76102038]
[1680455492202,1.70204683,1796.5,1796.2,0.83]
[1680455492702,0.835,1796.4,1796.1,2.71822038]
[1680455493098,1.70904683,1796.6,1796.3,1.0]
[1680455493992,1.70904683,1796.6,1796.2,6.19971066]
[1680455495302,1.70904683,1796.6,1796.3,1.0]
[1680455496591,1.70904683,1796.6,1796.2,6.19971066]
[1680455497206,1.70904683,1796.6,1796.2,5.37271066]
[1680455497207,1.98704683,1796.6,1796.2,5.37271066]
[1680455498200,1.98704683,1796.6,1796.3,0.12180913]
[1680455498396,0.87404683,1796.5,1796.3,0.12180913]
[1680455498597,1.87404683,1796.5,1796.3,0.12180913]
[1680455498792,0.87404683,1796.5,1796.1,6.03502038]
[1680455500105,0.87404683,1796.5,1796.1,2.82722038]
[1680455500299,1.87404683,1796.5,1796.1,2.82722038]
[1680455500506,3.2078,1796.4,1796.1,2.82722038]
[1680455500696,3.2078,1796.4,1796.1,1.66230972]
[1680455502011,3.2078,1796.2,1796.1,0.55330972]
[1680455502308,3.2078,1796.2,1796.0,3.97976267]
[1680455503602,3.2078,1796.2,1796.0,1.70185201]
[1680455503807,3.2078,1796.2,1795.9,2.27791066]
[1680455504902,1.87404683,1796.3,1795.8,1.16491066]
[1680455504903,4.3108,1796.0,1795.8,1.16491066]
[1680455509304,4.3108,1796.0,1795.7,1.16491066]
[1680455509498,4.3108,1796.0,1795.7,2.16491066]
[1680455509702,4.3108,1796.0,1795.8,1.16491066]
[1680455511213,4.3108,1796.0,1795.7,2.16491066]
[1680455511505,4.3108,1796.0,1795.8,1.16491066]
[1680455511708,4.3108,1796.0,1795.7,2.16491066]
[1680455512304,4.3108,1796.0,1795.7,1.16491066]
[1680455513204,0.19842348,1795.9,1795.7,1.16491066]
[1680455514008,3.2078,1795.8,1795.7,1.16491066]
[1680455517514,0.19842348,1795.9,1795.7,3.27191066]
[1680455517708,0.19842348,1795.9,1795.8,1.16491066]
[1680455518006,1.105,1796.2,1795.8,2.16491066]
[1680455518410,3.2078,1796.1,1795.8,2.16491066]
[1680455518807,3.2078,1796.1,1795.8,1.16491066]
[1680455520419,1.105,1796.2,1795.9,1.0]
[1680455520804,4.3128,1796.2,1795.9,1.0]
[1680455521408,3.2078,1796.2,1795.9,2.107]
[1680455529117,3.2078,1796.2,1795.9,3.27191066]
[1680455529518,5.18584683,1796.4,1795.9,3.27191066]
[1680455529721,3.2078,1796.4,1796.1,1.107]
[1680455530025,3.2078,1796.4,1796.2,1.07488033]
[1680455530824,3.2078,1796.4,1796.2,0.07488033]
[1680455531018,0.87404683,1796.6,1796.3,1.107]
[1680455531620,0.87404683,1796.6,1796.5,1.107]
[1680455531925,0.87404683,1796.8,1796.5,4.3148]
[1680455532226,0.87404683,1796.8,1796.7,1.113]
[1680455532618,0.87404683,1796.9,1796.7,1.113]
[1680455533124,4.08184683,1797.0,1796.7,1.113]
[1680455533327,4.08184683,1797.0,1796.6,2.107]
[1680455534618,4.08184683,1797.0,1796.8,1.113]
[1680455536524,3.2078,1797.0,1796.8,1.113]
[1680455537027,4.08184683,1797.0,1796.8,1.113]
[1680455537230,3.2078,1797.0,1796.8,1.113]
[1680455537425,3.2078,1797.0,1796.6,2.113]
[1680455537727,3.2078,1797.0,1796.6,1.67203024]
[1680455540725,3.2078,1797.0,1796.8,1.111]
[1680455542127,3.2078,1797.0,1796.7,1.113]
[1680455542326,4.64031053,1797.2,1796.9,1.113]
[1680455543329,3.2078,1797.2,1797.0,0.28900949]
[1680455547033,5.19484683,1797.4,1797.0,0.28900949]
[1680455547637,5.75757844,1797.4,1797.0,0.28900949]
[1680455547835,1.113,1797.2,1797.0,0.28900949]
[1680455550841,4.3208,1797.2,1797.0,0.28900949]
[1680455551243,4.3208,1797.2,1796.8,1.113]
[1680455552050,4.3208,1797.2,1796.7,1.113]
[1680455558252,4.3208,1797.2,1796.8,0.42365792]
[1680455559462,2.104,1797.1,1796.8,0.42365792]
[1680455559652,1.0,1797.0,1796.8,0.42365792]
[1680455559960,4.2078,1797.0,1796.6,1.67203024]
[1680455560158,4.2078,1797.0,1796.6,4.87983024]
[1680455560358,4.2078,1797.0,1796.6,1.67203024]
[1680455560561,3.2078,1797.0,1796.6,1.67203024]
[1680455562060,4.3208,1797.0,1796.6,0.55903024]
[1680455562262,4.3208,1797.0,1796.5,7.85635869]
[1680455563059,4.3208,1797.0,1796.5,2.76005869]
[1680455563264,4.3208,1797.0,1796.5,3.76005869]
[1680455563960,1.113,1797.0,1796.6,3.2078]
[1680455564463,1.113,1797.0,1796.7,1.0]
[1680455564963,5.19484683,1797.2,1796.7,2.113]
[1680455565861,5.19484683,1797.2,1796.8,3.2078]
[1680455566261,5.19484683,1797.2,1796.7,2.113]
[1680455566468,5.19484683,1797.2,1796.7,1.113]
[1680455567064,5.19484683,1797.2,1796.8,3.2078]
[1680455570468,5.19484683,1797.2,1796.7,1.113]
[1680455571166,0.87404683,1797.1,1796.7,1.113]
[1680455572168,0.87404683,1797.1,1796.8,1.113]
[1680455573368,0.87404683,1797.1,1796.9,0.42487735]
[1680455573868,0.87404683,1797.1,1796.8,1.113]
[1680455575171,0.87404683,1796.9,1796.8,1.113]
[1680455577070,0.87404683,1796.9,1796.8,0.834]
[1680455582079,0.87404683,1796.9,1796.7,1.99291066]
[1680455583375,0.87404683,1796.9,1796.7,1.16491066]
[1680455583681,1.70504683,1796.8,1796.6,1.72611272]
[1680455584469,0.87404683,1796.7,1796.6,1.72611272]
[1680455584675,1.70504683,1796.8,1796.6,1.72611272]
[1680455585283,1.70704683,1796.7,1796.6,1.72611272]
[1680455585474,1.70704683,1796.7,1796.5,1.16491066]
[1680455585673,0.831,1796.6,1796.4,1.16491066]
[1680455585873,5.91284683,1796.6,1796.5,1.16491066]
[1680455586186,4.91284683,1796.6,1796.4,1.16491066]
[1680455587081,5.19484683,1796.6,1796.4,1.16491066]
[1680455588087,4.3208,1796.6,1796.5,0.13997174]
[1680455588280,1.113,1796.6,1796.5,0.13997174]
[1680455588787,0.87404683,1796.7,1796.5,0.13997174]
[1680455592087,5.18384683,1796.7,1796.5,0.13997174]
[1680455592283,5.18384683,1796.7,1796.4,1.16491066]
[1680455592987,5.18384683,1796.7,1796.3,1.16491066]
[1680455602092,0.58290798,1796.6,1796.3,2.26891066]
[1680455603091,0.58290798,1796.6,1796.4,0.1396884]
[1680455603291,0.58290798,1796.6,1796.4,1.0]
[1680455607390,0.58290798,1796.6,1796.3,3.26891066]
[1680455608194,4.66475481,1796.7,1796.3,3.26891066]
[1680455608896,3.79070798,1796.7,1796.3,3.26891066]
[1680455609091,3.79070798,1796.7,1796.3,6.47671066]
[1680455609492,4.66475481,1796.7,1796.3,6.47671066]
[1680455609795,0.58290798,1796.7,1796.4,1.0]
[1680455609997,0.58290798,1796.7,1796.4,2.16491066]
[1680455610395,0.58290798,1796.7,1796.4,1.0]
[1680455611601,0.58290798,1796.7,1796.3,6.47671066]
[1680455612101,0.58290798,1796.7,1796.4,1.109]
[1680455614107,0.58290798,1796.7,1796.4,2.109]
[1680455614303,0.58290798,1796.7,1796.4,2.27391066]
[1680455616104,1.45695481,1796.7,1796.4,2.27391066]
[1680455616300,0.58290798,1796.6,1796.4,1.109]
[1680455618202,0.58290798,1796.6,1796.5,0.14263337]
[1680455624002,4.08184683,1796.7,1796.5,0.14263337]
[1680455624207,1.45763578,1796.6,1796.5,0.14263337]
[1680455625109,1.45367077,1796.6,1796.5,0.14263337]
[1680455626109,0.87008182,1796.6,1796.5,1.30754403]
[1680455627809,1.16692209,1796.8,1796.5,5.56543337]
[1680455628013,1.16692209,1796.9,1796.7,4.3168]
[1680455629002,1.16692209,1796.9,1796.8,1.0]
[1680455629409,1.16692209,1796.9,1796.7,4.3168]
[1680455630909,0.58356595,1796.8,1796.7,4.3168]
[1680455631111,0.58356595,1796.8,1796.7,5.47988763]
[1680455631312,0.58356595,1796.8,1796.7,4.3168]
[1680455632211,0.58356595,1796.8,1796.7,4.86928406]
[1680455632913,0.58356595,1796.8,1796.7,6.03237169]
[1680455633120,0.58356595,1796.8,1796.7,6.32615652]
[1680455635116,0.58356595,1796.9,1796.7,6.32615652]
[1680455637632,0.58356595,1796.9,1796.7,3.11835652]
[1680455637835,0.58356595,1796.9,1796.7,1.95526889]
[1680455639726,0.58356595,1796.9,1796.7,0.84626889]
[1680455640932,0.58356595,1796.9,1796.7,0.29378483]
[1680455641334,0.58356595,1796.9,1796.6,2.27608763]
[1680455642033,0.58356595,1796.9,1796.6,1.16308763]
[1680455642527,0.58356595,1796.9,1796.6,1.71349015]
[1680455648040,0.58356595,1796.9,1796.7,0.25711737]
[1680455648337,0.58356595,1796.9,1796.6,1.71349015]
[1680455649636,0.58356595,1796.8,1796.6,0.55040252]
[1680455649837,0.58356595,1796.8,1796.5,3.91998683]
[1680455650342,0.58356595,1796.8,1796.5,2.27608763]
[1680455651543,0.58356595,1796.9,1796.6,1.16308763]
[1680455651836,0.58356595,1796.9,1796.6,4.37088763]
[1680455652337,0.58356595,1796.9,1796.6,5.19888763]
[1680455653043,0.58356595,1796.8,1796.6,5.19888763]
[1680455653542,0.58356595,1796.9,1796.6,5.19888763]
[1680455656938,0.58356595,1796.9,1796.6,5.75918654]
[1680455663152,0.58356595,1796.9,1796.7,0.13281466]
[1680455663350,0.58356595,1796.9,1796.7,2.13090229]
[1680455663648,0.58356595,1796.9,1796.7,1.99808763]
[1680455663848,0.58356595,1796.9,1796.7,0.835]
[1680455664051,0.58356595,1796.9,1796.7,1.99808763]
[1680455672052,0.58356595,1796.9,1796.8,0.835]
[1680455673056,1.16692209,1797.0,1796.8,1.99808763]
[1680455675250,1.16692209,1797.0,1796.8,0.835]
[1680455675461,4.37472209,1797.0,1796.7,1.99308763]
[1680455675654,0.5837928,1796.8,1796.7,1.99308763]
[1680455677059,0.5837928,1796.8,1796.7,0.83]
[1680455677259,0.5837928,1796.9,1796.7,2.28682905]
[1680455677460,0.5837928,1796.9,1796.8,1.16337188]
[1680455678266,0.5837928,1796.9,1796.8,1.29590538]
[1680455682063,0.5837928,1796.9,1796.8,2.13090538]
[1680455682763,0.5837928,1796.9,1796.8,5.33870538]
[1680455691276,0.5837928,1796.9,1796.8,2.13090538]
[1680455692077,0.5837928,1796.9,1796.8,1.29590538]
[1680455695771,1.45925948,1796.9,1796.8,1.29590538]
[1680455696477,0.87546668,1796.9,1796.8,1.29590538]
[1680455697778,0.87546668,1796.9,1796.8,2.95890538]
[1680455697973,0.58370526,1796.9,1796.8,2.95890538]
[1680455698179,0.5770516,1796.9,1796.8,6.16670538]
[1680455703288,0.5770516,1796.9,1796.8,2.95890538]
[1680455703477,1.45251828,1796.9,1796.8,2.95890538]
[1680455704074,0.87546668,1796.9,1796.8,2.95890538]
[1680455709488,0.87546668,1796.9,1796.8,2.12390538]
[1680455712190,0.87546668,1796.9,1796.8,2.12790538]
[1680455716990,0.87546668,1797.0,1796.8,2.12790538]
[1680455717792,0.87546668,1796.9,1796.8,2.12790538]
[1680455718096,1.87546668,1797.0,1796.8,2.12790538]
[1680455718395,0.87546668,1796.9,1796.8,2.12790538]
[1680455722493,0.87546668,1796.9,1796.8,0.9645335]
[1680455727790,0.87546668,1796.9,1796.8,2.12785565]
[1680455728085,0.87546668,1796.9,1796.8,0.9645335]
[1680455728793,4.08326668,1797.0,1796.8,0.9645335]
[1680455728995,4.08326668,1797.0,1796.9,1.16330121]
[1680455729194,4.08326668,1797.0,1796.9,1.29036124]
[1680455730203,3.2078,1797.0,1796.9,1.29036124]
[1680455733193,0.87586677,1797.2,1797.0,0.834]
[1680455733396,0.87586677,1797.2,1797.1,2.99711905]
[1680455733592,0.87586677,1797.2,1797.1,1.99711905]
[1680455733793,1.16692209,1797.3,1797.1,1.99711905]
[1680455734100,0.87577278,1797.2,1797.1,1.99711905]
[1680455734395,0.87577278,1797.2,1797.1,0.834]
[1680455737703,0.87577278,1797.2,1796.9,2.12417908]
[1680455737894,1.87577278,1797.2,1796.9,2.12417908]
[1680455738303,0.87577278,1797.1,1796.9,2.12417908]
[1680455738696,1.87577278,1797.2,1796.9,2.12417908]
[1680455739999,1.87577278,1797.2,1796.9,2.23933444]
[1680455740202,0.87577278,1797.2,1796.9,2.23933444]
[1680455748308,4.08357278,1797.3,1797.1,0.834]
[1680455748507,2.04269487,1797.4,1797.1,0.834]
[1680455748805,0.87577278,1797.4,1797.2,1.0]
[1680455749397,0.87577278,1797.4,1797.1,1.834]
[1680455749605,0.87577278,1797.4,1797.1,2.99711905]
[1680455749797,0.87577278,1797.4,1797.1,0.834]
[1680455749998,0.87577278,1797.4,1797.1,1.99711905]
[1680455750510,0.87577278,1797.4,1797.1,0.834]
[1680455750706,0.87577278,1797.4,1797.3,0.831]
[1680455750910,0.87577278,1797.5,1797.3,0.831]
[1680455753104,4.08357278,1797.6,1797.3,0.831]
[1680455754608,4.08357278,1797.6,1797.5,0.831]
[1680455754813,1.16692209,1797.7,1797.5,0.831]
[1680455754814,1.44449978,1797.7,1797.5,0.831]
[1680455755007,0.87577278,1797.6,1797.5,1.2218657]
[1680455755207,1.87577278,1797.7,1797.5,1.2218657]
[1680455755404,0.87577278,1797.7,1797.5,1.2218657]
[1680455763019,4.08357278,1797.8,1797.5,1.2218657]
[1680455767321,5.08357278,1797.8,1797.5,1.2218657]
[1680455767620,1.0,1797.7,1797.5,1.2218657]
[1680455770928,5.08357278,1797.8,1797.5,1.2218657]
[1680455772127,5.91057278,1797.8,1797.5,0.3908657]
[1680455774529,1.0,1797.7,1797.5,0.3908657]
[1680455775929,5.91057278,1797.8,1797.5,0.3908657]
[1680455776328,1.0,1797.7,1797.5,0.3908657]
[1680455777129,1.834,1797.7,1797.5,0.3908657]
[1680455777627,0.834,1797.7,1797.5,0.3908657]
[1680455777831,1.834,1797.7,1797.5,0.3908657]
[1680455778031,0.834,1797.7,1797.5,0.3908657]
[1680455778328,1.70977278,1797.7,1797.5,0.3908657]
[1680455778829,1.70977278,1797.7,1797.3,0.827]
[1680455779030,0.834,1797.7,1797.6,0.39043655]
[1680455779225,0.834,1797.7,1797.3,1.827]
[1680455779433,0.834,1797.7,1797.3,0.827]
[1680455779732,1.834,1797.7,1797.3,0.827]
[1680455780135,0.834,1797.7,1797.3,0.827]
[1680455781726,1.834,1797.7,1797.3,0.827]
[1680455782032,5.91457278,1797.8,1797.4,0.831]
[1680455784239,4.91457278,1797.8,1797.4,0.831]
[1680455784640,0.87577278,1797.7,1797.4,0.831]
[1680455784823,1.87577278,1797.7,1797.4,0.831]
[1680455785028,1.87577278,1797.7,1797.5,0.39032897]
[1680455785232,0.87577278,1797.7,1797.5,0.39032897]
[1680455785737,5.91457278,1797.8,1797.5,0.39032897]
[1680455786329,1.87577278,1797.7,1797.5,0.39032897]
[1680455786931,0.87577278,1797.7,1797.5,0.39032897]
[1680455788334,0.87577278,1797.7,1797.6,0.832]
[1680455788537,4.08357278,1797.8,1797.6,0.832]
[1680455788733,0.87577278,1797.8,1797.6,0.832]
[1680455789637,2.04269487,1797.9,1797.7,0.829]
[1680455789831,0.87577278,1797.9,1797.8,0.834]
[1680455790030,0.97577278,1798.0,1797.8,5.0418]
[1680455790231,0.1,1798.0,1797.9,1.829]
[1680455790426,0.97577278,1798.0,1797.9,0.829]
[1680455791434,0.1,1798.0,1797.9,0.834]
[1680455791631,0.97577278,1798.0,1797.9,0.834]
[1680455793731,0.1,1798.0,1797.9,0.834]
[1680455800042,0.1,1798.0,1797.9,1.46600919]
[1680455804149,0.1,1798.0,1797.9,2.30000919]
[1680455804658,0.1,1798.0,1797.9,1.46600919]
[1680455808469,0.1,1798.0,1797.9,2.46600919]
[1680455808674,0.1,1798.0,1797.9,1.46600919]
[1680455809063,0.1,1798.0,1797.9,2.46600919]
[1680455811070,0.1,1798.0,1797.9,3.29600919]
[1680455811272,0.1,1798.0,1797.9,2.29600919]
[1680455811775,1.0,1798.3,1797.9,3.29600919]
[1680455811975,1.0,1798.3,1798.2,0.833]
[1680455812174,5.08357278,1798.4,1798.2,0.833]
[1680455812374,4.08357278,1798.4,1798.2,0.833]
[1680455812572,3.2078,1798.4,1798.2,0.833]
[1680455814076,1.87577278,1798.5,1798.2,0.833]
[1680455814380,0.87577278,1798.5,1798.2,0.833]
[1680455814680,0.87577278,1798.5,1798.2,4.0408]
[1680455815178,0.87577278,1798.5,1798.3,0.73756328]
[1680455815381,6.4871043,1798.6,1798.3,0.73756328]
[1680455815877,5.4871043,1798.6,1798.3,0.73756328]
[1680455816267,0.87577278,1798.5,1798.3,0.73756328]
[1680455817180,6.4871043,1798.6,1798.3,0.73756328]
[1680455817474,1.87577278,1798.5,1798.3,0.73756328]
[1680455817679,1.0,1798.4,1798.3,0.73756328]
[1680455818180,1.5811906,1798.4,1798.3,0.73756328]
[1680455818681,4.7889906,1798.4,1798.3,0.73756328]
[1680455821284,3.7889906,1798.4,1798.3,0.73756328]
[1680455821580,3.2078,1798.4,1798.3,0.73756328]
[1680455822281,0.5811906,1798.4,1798.3,0.73756328]
[1680455822584,0.5811906,1798.5,1798.3,1.57156328]
[1680455822784,0.5811906,1798.5,1798.4,0.827]
[1680455825186,1.45696338,1798.5,1798.4,0.827]
[1680455825487,0.5811906,1798.5,1798.4,0.827]
[1680455826283,1.5811906,1798.5,1798.4,0.827]
[1680455826482,0.5811906,1798.5,1798.4,0.827]
[1680455826685,2.45712843,1798.5,1798.4,0.827]
[1680455828195,1.87577278,1798.5,1798.4,0.827]
[1680455828381,1.87577278,1798.5,1798.3,0.73756328]
[1680455828687,0.58146812,1798.4,1798.3,0.73756328]
[1680455828888,1.58146812,1798.4,1798.3,0.73756328]
[1680455829089,0.58146812,1798.4,1798.3,0.73756328]
[1680455830588,1.58146812,1798.4,1798.3,0.73756328]
[1680455831188,5.91757278,1798.4,1797.9,0.829]
[1680455831381,1.87577278,1798.4,1798.3,0.70372058]
[1680455831692,5.66207393,1798.4,1798.1,0.834]
[1680455832096,0.58170957,1798.3,1798.2,0.61372729]
[1680455832590,1.58170957,1798.3,1798.1,0.834]
[1680455832792,0.58170957,1798.3,1798.1,0.834]
[1680455838895,0.58170957,1798.3,1798.2,0.829]
[1680455839096,0.58170957,1798.3,1798.2,1.54472027]
[1680455842297,1.45427393,1798.5,1798.2,3.53983932]
[1680455842498,0.58170957,1798.5,1798.4,0.834]
[1680455842796,1.45427393,1798.5,1798.4,0.834]
[1680455843399,0.58170957,1798.5,1798.4,0.834]
[1680455844997,1.45427393,1798.5,1798.4,1.48998407]
[1680455845392,3.16521698,1798.5,1798.4,0.65598407]
[1680455845597,1.99891633,1798.5,1798.0,1.16311905]
[1680455845790,4.0358,1798.3,1798.1,0.3897899]
[1680455845995,4.61827242,1798.3,1798.1,0.3897899]
[1680455846198,3.79027242,1798.3,1798.1,1.2237899]
[1680455846403,1.0,1798.2,1798.1,1.2237899]
[1680455846999,3.79027242,1798.3,1798.1,1.2237899]
[1680455847201,3.79027242,1798.3,1798.1,1.4917899]
[1680455848302,3.79027242,1798.3,1798.1,2.65490895]
[1680455852100,3.79027242,1798.3,1798.2,1.109]
[1680455860110,3.79027242,1798.3,1798.2,1.57694764]
[1680455861825,3.79027242,1798.3,1798.2,2.74006669]
[1680455862012,0.58247242,1798.3,1798.2,2.74006669]
[1680455862506,1.45617664,1798.4,1798.2,2.74006669]
[1680455862711,0.58247242,1798.3,1798.2,2.74006669]
[1680455862912,2.45617664,1798.4,1798.2,2.74006669]
[1680455863121,1.45617664,1798.4,1798.2,2.74006669]
[1680455863919,0.58247242,1798.3,1798.2,2.74006669]
[1680455867820,1.45617664,1798.4,1798.2,2.74006669]
[1680455868019,0.58247242,1798.3,1798.2,2.74006669]
[1680455868316,2.45617664,1798.4,1798.2,2.74006669]
[1680455868517,0.58247242,1798.3,1798.2,2.74006669]
[1680455868920,4.79027242,1798.3,1798.2,0.46794764]
[1680455869127,4.79027242,1798.3,1798.2,1.16311905]
[1680455869417,3.79027242,1798.3,1798.1,2.27511905]
[1680455870026,3.79027242,1798.3,1798.2,1.16311905]
[1680455870225,3.79027242,1798.3,1798.1,2.27511905]
[1680455870525,3.79027242,1798.3,1798.2,1.16311905]
[1680455871220,1.45617664,1798.4,1798.2,1.16311905]
[1680455871924,0.58247242,1798.3,1798.2,1.16311905]
[1680455872124,0.58247242,1798.3,1798.2,2.27211905]
[1680455874130,1.45617664,1798.4,1798.2,2.27211905]
[1680455874330,0.58247242,1798.3,1798.2,2.27211905]
[1680455874526,1.45617664,1798.4,1798.2,2.27211905]
[1680455874922,0.58247242,1798.3,1798.2,2.27211905]
[1680455875830,1.45617664,1798.4,1798.2,2.27211905]
[1680455876030,0.58247242,1798.3,1798.2,2.27211905]
[1680455876927,1.45617664,1798.4,1798.2,2.27211905]
[1680455877325,0.58247242,1798.3,1798.2,2.27211905]
[1680455886540,0.58247242,1798.3,1798.2,1.109]
[1680455888945,0.58247242,1798.3,1798.2,2.56582905]
[1680455890048,0.58247242,1798.3,1798.2,3.03328196]
[1680455892048,0.58247242,1798.3,1798.2,3.03628196]
[1680455893052,0.58247242,1798.4,1798.2,11.81908196]
[1680455893243,0.58247242,1798.4,1798.3,1.16258698]
[1680455893447,0.58247242,1798.4,1798.3,2.16258698]
[1680455893745,0.58247242,1798.4,1798.3,1.16258698]
[1680455894651,1.45617664,1798.4,1798.3,1.16258698]
[1680455895346,1.45694171,1798.4,1798.3,1.16258698]
[1680455896151,1.45692359,1798.4,1798.3,1.16258698]
[1680455896347,4.08150422,1798.4,1798.3,1.16258698]
[1680455896548,4.08150422,1798.4,1798.2,1.63003989]
[1680455896751,1.58326894,1798.3,1798.2,1.63003989]
[1680455897148,1.58326894,1798.3,1798.2,1.63012446]
[1680455897350,1.58326894,1798.3,1798.2,0.46745291]
[1680455897647,1.58326894,1798.3,1798.2,1.16267008]
[1680455898255,1.58326894,1798.3,1798.1,2.55982905]
[1680455898847,0.58326894,1798.3,1798.2,1.45682905]
[1680455899860,0.58023845,1798.3,1798.2,1.45682905]